[Event "Deutscher Jugend Online Cup 2020"]
[Site "Tornelo"]
[Date "2020.11.14"]
[Round "6.5"]
[White "Sickmann, Lisa"]
[Black "B___, L___"]
[Result "1-0"]
[ECO "B76"]
[WhiteElo "1510"]
[BlackElo "1348"]
[Annotator "NA RC"]
[PlyCount "63"]
[EventDate "2020.11.13"]
[EventType "k.o."]
[SourceTitle "playchess.com"]
[Source "ChessBase"]
[SourceQuality "1"]
[TimeControl "600+3"]

1. e4 {[%emt 0:00:00]} c5 {[%emt 0:00:04]} 2. Nf3 {[%emt 0:00:03]} g6 {[%emt 0:00:03]} 3. d4 {[%emt 0:00:06]} cxd4 {[%emt 0:00:02]} 4. Nxd4 {[%emt 0:00:02]} Nc6 {[%emt 0:00:01]} 5. Be3 {[%emt 0:00:06]} Nf6 {[%emt 0:00:24]} 6. Nc3 {[%emt 0:00:04]} d6 {[%emt 0:00:03]} 7. f3 {[%emt 0:00:02]} Bg7 {[%emt 0:00:06]} 8. Qd2 {[%emt 0:00:02]} O-O {[%emt 0:00:09]} 9. g4 {[%emt 0:00:05]} Be6 {[%emt 0:00:29]} 10. Nxe6 {[%emt 0:00:16]} fxe6 {[%emt 0:00:03]} 11. O-O-O {[%emt 0:00:08]} Qa5 {[%emt 0:00:05]} 12. Bc4 {[%emt 0:00:17]} Kf7 {[%emt 0:01:43]} 13. g5 {[%emt 0:00:42]} Nh5 {[%emt 0:00:30]} 14. f4 {[%emt 0:00:21]} a6 {[%emt 0:00:23]} 15. f5 {[%emt 0:00:15]} Ne5 {[%emt 0:00:57]} 16. Bxe6+ {[%emt 0:00:19]} Ke8 {[%emt 0:00:08]} 17. Nd5 {[%emt 0:00:31]} Qxd2+ {[%emt 0:00:44]} 18. Rxd2 {[%emt 0:00:13]} Rb8 {[%emt 0:00:34]} 19. Ba7 {[%emt 0:00:25]} Ra8 {[%emt 0:00:41]} 20. Nc7+ {[%emt 0:00:03]} Kd8 {[%emt 0:00:03]} 21. Nxa8 {[%emt 0:00:04]} Nd7 {[%emt 0:00:29]} 22. Bb6+ {[%emt 0:00:22]} Nxb6 {[%emt 0:00:06]} 23. Nxb6 {[%emt 0:00:04]} Kc7 {[%emt 0:00:08]} 24. Nd5+ {[%emt 0:00:03]} Kd8 {[%emt 0:00:18]} 25. f6 {[%emt 0:00:38]} exf6 {[%emt 0:00:06]} 26. Nxf6 {[%emt 0:00:03]} Nxf6 {[%emt 0:00:03]} 27. gxf6 {[%emt 0:00:02]} Rxf6 {[%emt 0:00:06]} 28. Rxd6+ {[%emt 0:00:20]} Ke7 {[%emt 0:00:17]} 29. Rd7+ {[%emt 0:00:22]} Kxe6 {[%emt 0:00:03]} 30. Rxg7 {[%emt 0:00:04]} Rf7 {[%emt 0:00:06]} 31. Rxf7 {[%emt 0:00:02]} Kxf7 {[%emt 0:00:02]} 32. Re1 {[%emt 0:00:01]} 1-0

[Event "Deutscher Jugend Online Cup 2020"]
[Site "Tornelo"]
[Date "2020.11.14"]
[Round "6.6"]
[White "Buchinger, Alexis"]
[Black "Marcziter, Alex"]
[Result "0-1"]
[ECO "C54"]
[WhiteElo "1496"]
[BlackElo "1401"]
[Annotator "NA RC"]
[PlyCount "108"]
[EventDate "2020.11.13"]
[EventType "k.o."]
[SourceTitle "playchess.com"]
[Source "ChessBase"]
[SourceQuality "1"]
[TimeControl "600+3"]

1. e4 {[%emt 0:00:00]} e5 {[%emt 0:00:53]} 2. Nf3 {[%emt 0:00:04]} Nc6 {[%emt 0:00:10]} 3. Bc4 {[%emt 0:00:07]} Nf6 {[%emt 0:00:08]} 4. d3 {[%emt 0:00:02]} Bc5 {[%emt 0:00:06]} 5. c3 {[%emt 0:00:04]} d6 {[%emt 0:00:08]} 6. O-O {[%emt 0:00:03]} h6 {[%emt 0:00:10]} 7. Re1 {[%emt 0:00:10]} O-O {[%emt 0:00:07]} 8. Nbd2 {[%emt 0:00:02]} Be6 {[%emt 0:00:12]} 9. a4 {[%emt 0:00:11]} Bxc4 {[%emt 0:00:06]} 10. Nxc4 {[%emt 0:00:04]} a6 {[%emt 0:00:09]} 11. b4 {[%emt 0:00:03]} Ba7 {[%emt 0:00:08]} 12. Be3 {[%emt 0:00:02]} Ne7 {[%emt 0:00:21]} 13. Bxa7 {[%emt 0:00:08]} Rxa7 {[%emt 0:00:07]} 14. d4 {[%emt 0:00:02]} exd4 {[%emt 0:00:11]} 15. cxd4 {[%emt 0:00:02]} Ng6 {[%emt 0:00:11]} 16. e5 {[%emt 0:00:05]} dxe5 {[%emt 0:00:08]} 17. Nfxe5 {[%emt 0:00:05]} Nf4 {[%emt 0:00:19]} 18. Qf3 {[%emt 0:00:31]} N6d5 {[%emt 0:00:13]} 19. Ne3 {[%emt 0:00:17]} Nxe3 {[%emt 0:00:17]} 20. fxe3 {[%emt 0:00:09]} Nd5 {[%emt 0:00:08]} 21. Rf1 {[%emt 0:00:04]} Nxb4 {[%emt 0:00:22]} 22. Nxf7 {[%emt 0:00:07]} Qe7 {[%emt 0:00:08]} 23. Qh5 {[%emt 0:00:35]} Rxf7 {[%emt 0:00:12]} 24. Rxf7 {[%emt 0:00:13]} Qxf7 {[%emt 0:00:07]} 25. Qc5 {[%emt 0:00:03]} Nc6 {[%emt 0:00:35]} 26. d5 {[%emt 0:00:02]} Qe7 {[%emt 0:00:12]} 27. Rc1 {[%emt 0:00:22]} Qxc5 {[%emt 0:00:08]} 28. Rxc5 {[%emt 0:00:03]} Ne7 {[%emt 0:00:08]} 29. e4 {[%emt 0:00:05]} b6 {[%emt 0:00:09]} 30. Rc1 {[%emt 0:00:09]} b5 {[%emt 0:00:10]} 31. axb5 {[%emt 0:00:06]} axb5 {[%emt 0:00:08]} 32. Rd1 {[%emt 0:00:05]} Kf7 {[%emt 0:00:14]} 33. e5 {[%emt 0:00:04]} b4 {[%emt 0:00:21]} 34. d6 {[%emt 0:00:03]} cxd6 {[%emt 0:00:10]} 35. exd6 {[%emt 0:00:02]} Rd7 {[%emt 0:00:13]} 36. Rf1+ {[%emt 0:00:08]} Ke6 {[%emt 0:00:19]} 37. dxe7 {[%emt 0:00:05]} Kxe7 {[%emt 0:00:07]} 38. Rb1 {[%emt 0:00:04]} Rb7 {[%emt 0:00:11]} 39. Kf2 {[%emt 0:00:01]} Kd6 {[%emt 0:00:16]} 40. Ke3 {[%emt 0:00:03]} Kc5 {[%emt 0:00:12]} 41. Rc1+ {[%emt 0:00:09]} Kb5 {[%emt 0:00:08]} 42. Kd3 {[%emt 0:00:18]} Ka4 {[%emt 0:00:21]} 43. Rb1 {[%emt 0:00:22]} Ka3 {[%emt 0:00:10]} 44. h4 {[%emt 0:00:11]} Ka2 {[%emt 0:00:13]} 45. Re1 {[%emt 0:00:12]} b3 {[%emt 0:00:08]} 46. Re6 {[%emt 0:00:20]} b2 {[%emt 0:00:08]} 47. Ra6+ {[%emt 0:00:03]} Kb3 {[%emt 0:00:07]} 48. Rg6 {[%emt 0:00:10]} b1=Q+ {[%emt 0:00:09]} 49. Ke3 {[%emt 0:00:01]} Qxg6 {[%emt 0:00:18]} 50. Kf2 {[%emt 0:00:02]} Re7 {[%emt 0:00:15]} 51. g3 {[%emt 0:00:03]} Qf5+ {[%emt 0:00:08]} 52. Kg1 {[%emt 0:00:10]} Re1+ {[%emt 0:00:09]} 53. Kg2 {[%emt 0:00:10]} Qf1+ {[%emt 0:00:09]} 54. Kh2 {[%emt 0:00:04]} Qh1# {[%emt 0:00:12]} 0-1

[Event "Deutscher Jugend Online Cup 2020"]
[Site "Tornelo"]
[Date "2020.11.14"]
[Round "6.6"]
[White "Wartenberg, Alissa"]
[Black "Haug, Mara"]
[Result "1-0"]
[ECO "B39"]
[WhiteElo "1463"]
[BlackElo "1356"]
[Annotator "NA RC"]
[PlyCount "127"]
[EventDate "2020.11.13"]
[EventType "k.o."]
[SourceTitle "playchess.com"]
[Source "ChessBase"]
[SourceQuality "1"]
[TimeControl "600+3"]

1. e4 {[%emt 0:00:00]} c5 {[%emt 0:00:02]} 2. Nf3 {[%emt 0:00:05]} Nc6 {[%emt 0:00:04]} 3. d4 {[%emt 0:00:02]} cxd4 {[%emt 0:00:01]} 4. Nxd4 {[%emt 0:00:07]} g6 {[%emt 0:00:02]} 5. c4 {[%emt 0:00:02]} Bg7 {[%emt 0:00:02]} 6. Be3 {[%emt 0:00:10]} Nf6 {[%emt 0:00:03]} 7. Nc3 {[%emt 0:00:03]} Ng4 {[%emt 0:00:46]} 8. Qxg4 {[%emt 0:00:04]} Nxd4 {[%emt 0:00:03]} 9. Qd1 {[%emt 0:00:04]} Nc6 {[%emt 0:00:04]} 10. Rc1 {[%emt 0:00:27]} d6 {[%emt 0:00:02]} 11. Be2 {[%emt 0:00:17]} Be6 {[%emt 0:00:05]} 12. Qd2 {[%emt 0:00:37]} Ne5 {[%emt 0:00:28]} 13. b3 {[%emt 0:00:24]} Ng4 {[%emt 0:00:11]} 14. Bxg4 {[%emt 0:00:26]} Bxg4 {[%emt 0:00:03]} 15. f3 {[%emt 0:00:03]} Bd7 {[%emt 0:00:11]} 16. Bd4 {[%emt 0:00:32]} f6 {[%emt 0:00:14]} 17. Be3 {[%emt 0:00:21]} h5 {[%emt 0:00:18]} 18. Ne2 {[%emt 0:00:41]} Qc7 {[%emt 0:00:13]} 19. Nf4 {[%emt 0:00:15]} g5 {[%emt 0:00:25]} 20. Nd5 {[%emt 0:00:16]} Qc6 {[%emt 0:00:17]} 21. Qd3 {[%emt 0:01:06]} b6 {[%emt 0:00:32]} 22. Bd4 {[%emt 0:00:25]} Rc8 {[%emt 0:00:29]} 23. Bb2 {[%emt 0:00:28]} Be6 {[%emt 0:00:19]} 24. Ne3 {[%emt 0:00:47]} Qc5 {[%emt 0:00:24]} 25. Bd4 {[%emt 0:00:52]} Qa5+ {[%emt 0:00:42]} 26. Qd2 {[%emt 0:00:15]} Qa6 {[%emt 0:00:09]} 27. O-O {[%emt 0:00:16]} Bh6 {[%emt 0:00:26]} 28. Nf5 {[%emt 0:00:26]} Bxf5 {[%emt 0:00:12]} 29. exf5 {[%emt 0:00:05]} g4 {[%emt 0:00:10]} 30. f4 {[%emt 0:00:04]} h4 {[%emt 0:00:28]} 31. Rfe1 {[%emt 0:00:15]} Qb7 {[%emt 0:00:41]} 32. Bxf6 {[%emt 0:00:34]} Rh7 {[%emt 0:00:20]} 33. Bxe7 {[%emt 0:00:59]} Rxe7 {[%emt 0:00:10]} 34. Rxe7+ {[%emt 0:00:03]} Kxe7 {[%emt 0:00:02]} 35. Re1+ {[%emt 0:00:02]} Kd8 {[%emt 0:00:08]} 36. Qxd6+ {[%emt 0:00:02]} Qd7 {[%emt 0:00:04]} 37. Qxh6 {[%emt 0:00:02]} Qxf5 {[%emt 0:00:13]} 38. Qxh4+ {[%emt 0:00:03]} Kc7 {[%emt 0:00:08]} 39. Qe7+ {[%emt 0:00:02]} Kb8 {[%emt 0:00:09]} 40. Qe5+ {[%emt 0:00:02]} Qxe5 {[%emt 0:00:03]} 41. fxe5 {[%emt 0:00:01]} Re8 {[%emt 0:00:02]} 42. Kf2 {[%emt 0:00:02]} Kc7 {[%emt 0:00:02]} 43. Kg3 {[%emt 0:00:01]} Kd7 {[%emt 0:00:02]} 44. Kxg4 {[%emt 0:00:02]} Ke6 {[%emt 0:00:01]} 45. Kh3 {[%emt 0:00:03]} Kf5 {[%emt 0:00:03]} 46. g4+ {[%emt 0:00:02]} Kf4 {[%emt 0:00:03]} 47. Kg2 {[%emt 0:00:01]} Rg8 {[%emt 0:00:03]} 48. h3 {[%emt 0:00:04]} Re8 {[%emt 0:00:04]} 49. e6 {[%emt 0:00:01]} Kg5 {[%emt 0:00:02]} 50. e7 {[%emt 0:00:02]} Kf6 {[%emt 0:00:02]} 51. Kg3 {[%emt 0:00:01]} a6 {[%emt 0:00:07]} 52. h4 {[%emt 0:00:03]} a5 {[%emt 0:00:10]} 53. g5+ {[%emt 0:00:02]} Kg6 {[%emt 0:00:03]} 54. Kg4 {[%emt 0:00:02]} Kg7 {[%emt 0:00:09]} 55. h5 {[%emt 0:00:02]} Rb8 {[%emt 0:00:14]} 56. e8=Q {[%emt 0:00:05]} Rxe8 {[%emt 0:00:05]} 57. Rxe8 {[%emt 0:00:02]} Kf7 {[%emt 0:00:02]} 58. Rb8 {[%emt 0:00:03]} Ke7 {[%emt 0:00:01]} 59. g6 {[%emt 0:00:02]} Kd6 {[%emt 0:00:02]} 60. g7 {[%emt 0:00:01]} Kc7 {[%emt 0:00:00]} 61. g8=Q {[%emt 0:00:03]} b5 {[%emt 0:00:01]} 62. Qd8+ {[%emt 0:00:03]} Kc6 {[%emt 0:00:03]} 63. Rb6+ {[%emt 0:00:03]} Kc5 {[%emt 0:00:01]} 64. Qd6# {[%emt 0:00:03]} 1-0

[Event "Deutscher Jugend Online Cup 2020"]
[Site "Tornelo"]
[Date "2020.11.14"]
[Round "6.7"]
[White "Besou, Hussain"]
[Black "Goldmann, David"]
[Result "0-1"]
[ECO "D06"]
[WhiteElo "1804"]
[BlackElo "1644"]
[Annotator "NA RC"]
[PlyCount "88"]
[EventDate "2020.11.13"]
[EventType "k.o."]
[SourceTitle "playchess.com"]
[Source "ChessBase"]
[SourceQuality "1"]
[TimeControl "600+3"]

1. d4 {[%emt 0:00:00]} Nf6 {[%emt 0:00:04]} 2. c4 {[%emt 0:00:03]} d5 {[%emt 0:00:02]} 3. cxd5 {[%emt 0:00:02]} Qxd5 {[%emt 0:00:02]} 4. Nc3 {[%emt 0:00:03]} Qd8 {[%emt 0:00:02]} 5. e4 {[%emt 0:00:03]} e6 {[%emt 0:00:02]} 6. Be3 {[%emt 0:00:03]} Bb4 {[%emt 0:00:03]} 7. Qc2 {[%emt 0:00:06]} O-O {[%emt 0:00:05]} 8. a3 {[%emt 0:00:02]} Bxc3+ {[%emt 0:00:04]} 9. bxc3 {[%emt 0:00:02]} b6 {[%emt 0:00:02]} 10. Nf3 {[%emt 0:00:05]} Bb7 {[%emt 0:00:02]} 11. Nd2 {[%emt 0:00:02]} Qe7 {[%emt 0:00:06]} 12. Be2 {[%emt 0:00:03]} Nbd7 {[%emt 0:00:03]} 13. O-O {[%emt 0:00:03]} Rfc8 {[%emt 0:00:03]} 14. c4 {[%emt 0:00:18]} c5 {[%emt 0:00:09]} 15. d5 {[%emt 0:00:03]} exd5 {[%emt 0:00:02]} 16. exd5 {[%emt 0:00:05]} Qd6 {[%emt 0:00:05]} 17. Qf5 {[%emt 0:00:11]} g6 {[%emt 0:00:08]} 18. Qc2 {[%emt 0:00:05]} Re8 {[%emt 0:00:03]} 19. a4 {[%emt 0:00:05]} a5 {[%emt 0:00:16]} 20. Rfb1 {[%emt 0:00:08]} h5 {[%emt 0:00:16]} 21. h3 {[%emt 0:00:04]} Rab8 {[%emt 0:00:16]} 22. Rb2 {[%emt 0:00:03]} Ne5 {[%emt 0:00:03]} 23. Rab1 {[%emt 0:00:05]} Bc8 {[%emt 0:00:01]} 24. Nf3 {[%emt 0:00:10]} Bf5 {[%emt 0:00:09]} 25. Qc1 {[%emt 0:00:08]} Bxb1 {[%emt 0:00:06]} 26. Qxb1 {[%emt 0:00:02]} Nxf3+ {[%emt 0:00:10]} 27. Bxf3 {[%emt 0:00:02]} Nd7 {[%emt 0:00:06]} 28. Rb3 {[%emt 0:00:16]} Ne5 {[%emt 0:00:09]} 29. Be2 {[%emt 0:00:04]} Qf6 {[%emt 0:00:06]} 30. Bxc5 {[%emt 0:00:09]} Nd7 {[%emt 0:00:10]} 31. Be3 {[%emt 0:00:02]} Rec8 {[%emt 0:00:19]} 32. Rb5 {[%emt 0:00:08]} Qd6 {[%emt 0:00:24]} 33. Qe4 {[%emt 0:00:10]} Re8 {[%emt 0:00:21]} 34. Qc2 {[%emt 0:00:14]} Nf6 {[%emt 0:00:09]} 35. Qb2 {[%emt 0:00:09]} Qe5 {[%emt 0:00:25]} 36. Qb1 {[%emt 0:00:15]} Nd7 {[%emt 0:00:06]} 37. Bf1 {[%emt 0:00:19]} Qd6 {[%emt 0:00:21]} 38. Qc1 {[%emt 0:00:11]} Ne5 {[%emt 0:00:09]} 39. Qb2 {[%emt 0:00:13]} Rec8 {[%emt 0:00:18]} 40. c5 {[%emt 0:00:28]} bxc5 {[%emt 0:00:08]} 41. Rxb8 {[%emt 0:00:51]} Rxb8 {[%emt 0:00:03]} 42. Qd2 {[%emt 0:00:05]} Rb4 {[%emt 0:00:06]} 43. Bb5 {[%emt 0:00:08]} Rb1+ {[%emt 0:00:14]} 44. Bf1 {[%emt 0:00:07]} Qa6 {[%emt 0:00:07]} 0-1

[Event "Deutscher Jugend Online Cup 2020"]
[Site "Tornelo"]
[Date "2020.11.14"]
[Round "7.2"]
[White "Zhou, Lepu Coco"]
[Black "Bildat, Emilia"]
[Result "1-0"]
[ECO "B38"]
[WhiteElo "1882"]
[BlackElo "1852"]
[Annotator "NA RC"]
[PlyCount "135"]
[EventDate "2020.11.13"]
[EventType "k.o."]
[SourceTitle "playchess.com"]
[Source "ChessBase"]
[SourceQuality "1"]
[TimeControl "600+3"]

1. e4 {[%emt 0:00:00]} c5 {[%emt 0:00:05]} 2. Nf3 {[%emt 0:00:04]} g6 {[%emt 0:00:02]} 3. c4 {[%emt 0:00:02]} Bg7 {[%emt 0:00:02]} 4. d4 {[%emt 0:00:01]} cxd4 {[%emt 0:00:01]} 5. Nxd4 {[%emt 0:00:02]} Nc6 {[%emt 0:00:02]} 6. Be3 {[%emt 0:00:02]} Nf6 {[%emt 0:00:02]} 7. Nc3 {[%emt 0:00:02]} O-O {[%emt 0:00:02]} 8. Be2 {[%emt 0:00:03]} d6 {[%emt 0:00:02]} 9. O-O {[%emt 0:00:02]} Bd7 {[%emt 0:00:03]} 10. Rc1 {[%emt 0:00:03]} Nxd4 {[%emt 0:00:01]} 11. Bxd4 {[%emt 0:00:02]} Bc6 {[%emt 0:00:02]} 12. f3 {[%emt 0:00:03]} a5 {[%emt 0:00:03]} 13. b3 {[%emt 0:00:19]} Nd7 {[%emt 0:00:03]} 14. Be3 {[%emt 0:00:04]} Nc5 {[%emt 0:00:08]} 15. a3 {[%emt 0:00:20]} a4 {[%emt 0:00:10]} 16. b4 {[%emt 0:01:18]} Nb3 {[%emt 0:00:32]} 17. Rc2 {[%emt 0:00:07]} Rc8 {[%emt 0:00:53]} 18. b5 {[%emt 0:00:07]} Bd7 {[%emt 0:00:11]} 19. Nxa4 {[%emt 0:00:06]} Ra8 {[%emt 0:00:45]} 20. Ra2 {[%emt 0:00:55]} Nd4 {[%emt 0:01:23]} 21. Bxd4 {[%emt 0:00:16]} Bxd4+ {[%emt 0:00:03]} 22. Qxd4 {[%emt 0:00:03]} Rxa4 {[%emt 0:00:03]} 23. Bd1 {[%emt 0:00:03]} Ra8 {[%emt 0:00:11]} 24. a4 {[%emt 0:00:03]} Qc7 {[%emt 0:00:14]} 25. Bb3 {[%emt 0:00:21]} Rfc8 {[%emt 0:00:12]} 26. Rc2 {[%emt 0:00:09]} Qc5 {[%emt 0:00:02]} 27. Rd1 {[%emt 0:00:06]} Qxd4+ {[%emt 0:00:11]} 28. Rxd4 {[%emt 0:00:02]} Rc5 {[%emt 0:00:08]} 29. Rd5 {[%emt 0:00:10]} b6 {[%emt 0:00:28]} 30. Rxc5 {[%emt 0:00:03]} dxc5 {[%emt 0:00:06]} 31. Rd2 {[%emt 0:00:04]} Be6 {[%emt 0:00:03]} 32. Kf2 {[%emt 0:00:14]} Kg7 {[%emt 0:00:05]} 33. Ke3 {[%emt 0:00:02]} Ra7 {[%emt 0:00:17]} 34. f4 {[%emt 0:00:10]} Rd7 {[%emt 0:00:09]} 35. Rxd7 {[%emt 0:00:07]} Bxd7 {[%emt 0:00:02]} 36. e5 {[%emt 0:00:10]} Bf5 {[%emt 0:00:05]} 37. Bd1 {[%emt 0:00:12]} h5 {[%emt 0:00:04]} 38. h3 {[%emt 0:00:12]} h4 {[%emt 0:00:08]} 39. a5 {[%emt 0:00:06]} bxa5 {[%emt 0:00:06]} 40. b6 {[%emt 0:00:02]} (40. Bg4 $142 Be6 41. b6) 40... Bc8 {[%emt 0:00:05]} 41. Bf3 {[%emt 0:00:02]} a4 {[%emt 0:00:17]} 42. Kd2 {[%emt 0:00:05]} ({Don't go for} 42. b7 $2 {[#]} Bxb7 $1 {[%mdl 512]} 43. Kd3 Bxf3 $19) 42... a3 {[%emt 0:00:30]} 43. Kc3 {[%emt 0:00:05]} g5 {[%emt 0:01:17]} 44. b7 {[%emt 0:00:15]} Bxb7 {[%emt 0:00:03]} 45. Bxb7 {[%emt 0:00:02]} gxf4 {[%emt 0:00:03]} 46. Kb3 {[%emt 0:00:06]} a2 {[%emt 0:00:01]} 47. Kxa2 {[%emt 0:00:03]} Kg6 {[%emt 0:00:03]} 48. Be4+ {[%emt 0:00:02]} Kg5 {[%emt 0:00:07]} 49. Kb3 {[%emt 0:00:07]} f3 {[%emt 0:00:05]} 50. Bxf3 {[%emt 0:00:06]} Kf4 {[%emt 0:00:02]} 51. Ka4 {[%emt 0:00:10]} Kxe5 {[%emt 0:00:03]} 52. Kb5 {[%emt 0:00:02]} Kd4 {[%emt 0:00:03]} 53. Bh5 {[%emt 0:00:07]} f5 {[%emt 0:00:04]} 54. Bg6 {[%emt 0:00:05]} f4 {[%emt 0:00:04]} 55. Bh5 {[%emt 0:00:13]} e5 {[%emt 0:00:02]} 56. Bg4 {[%emt 0:01:15]} e4 {[%emt 0:00:06]} 57. Bd1 {[%emt 0:00:11]} e3 {[%emt 0:00:08]} 58. Be2 {[%emt 0:00:02]} Kc3 {[%emt 0:00:08]} 59. Kxc5 {[%emt 0:00:03]} Kd2 {[%emt 0:00:03]} 60. Bf3 {[%emt 0:00:28]} e2 {[%emt 0:00:09] [#]} 61. Bxe2 {[%emt 0:00:02]} Kxe2 {[%emt 0:00:02]} 62. Kd4 {[%emt 0:02:06]} f3 {[%emt 0:00:11]} 63. gxf3 {[%emt 0:00:05]} Kxf3 {[%emt 0:00:02]} 64. c5 {[%emt 0:00:03]} Kg3 {[%emt 0:00:02]} 65. c6 {[%emt 0:00:01]} Kxh3 {[%emt 0:00:01]} 66. c7 {[%emt 0:00:02]} Kh2 {[%emt 0:00:02]} 67. c8=Q {[%emt 0:00:05]} h3 {[%emt 0:00:02]} 68. Qg4 {[%emt 0:00:12]} 1-0

[Event "Deutscher Jugend Online Cup 2020"]
[Site "Tornelo"]
[Date "2020.11.14"]
[Round "7.3"]
[White "Marcziter, Alex"]
[Black "Buchinger, Alexis"]
[Result "1-0"]
[ECO "C54"]
[WhiteElo "1401"]
[BlackElo "1496"]
[Annotator "NA RC"]
[PlyCount "81"]
[EventDate "2020.11.13"]
[EventType "k.o."]
[SourceTitle "playchess.com"]
[Source "ChessBase"]
[SourceQuality "1"]
[TimeControl "600+3"]

1. e4 {[%emt 0:00:02]} e5 {[%emt 0:00:07]} 2. Nf3 {[%emt 0:00:04]} Nc6 {[%emt 0:00:02]} 3. Bc4 {[%emt 0:00:05]} Bc5 {[%emt 0:00:01]} 4. c3 {[%emt 0:00:04]} Nf6 {[%emt 0:00:03]} 5. d4 {[%emt 0:00:04]} exd4 {[%emt 0:00:03]} 6. cxd4 {[%emt 0:00:04]} Bb4+ {[%emt 0:00:02]} 7. Nc3 {[%emt 0:00:04]} Nxe4 {[%emt 0:00:05]} 8. O-O {[%emt 0:00:04]} Bxc3 {[%emt 0:00:02]} 9. d5 {[%emt 0:00:04]} Ne5 {[%emt 0:00:05]} 10. bxc3 {[%emt 0:00:05]} Nxc4 {[%emt 0:00:05]} 11. Qd4 {[%emt 0:00:05]} Ncd6 {[%emt 0:00:05]} 12. Qxg7 {[%emt 0:00:11]} Qf6 {[%emt 0:00:11]} 13. Qxf6 {[%emt 0:00:05]} Nxf6 {[%emt 0:00:03]} 14. Re1+ {[%emt 0:00:05]} Nfe4 {[%emt 0:00:25]} 15. Nd2 {[%emt 0:00:08]} f5 {[%emt 0:00:05]} 16. f3 {[%emt 0:00:05]} Kf7 {[%emt 0:00:07]} 17. fxe4 {[%emt 0:00:05]} Re8 {[%emt 0:00:02]} 18. e5 {[%emt 0:00:13]} Nb5 {[%emt 0:00:12]} 19. Bb2 {[%emt 0:00:20]} c6 {[%emt 0:00:16]} 20. d6 {[%emt 0:00:06]} a5 {[%emt 0:00:08]} 21. a4 {[%emt 0:00:10]} Na7 {[%emt 0:00:04]} 22. Nf3 {[%emt 0:00:15]} b5 {[%emt 0:00:02]} 23. Nh4 {[%emt 0:00:11]} f4 {[%emt 0:00:15]} 24. axb5 {[%emt 0:00:13]} Nxb5 {[%emt 0:00:08]} 25. c4 {[%emt 0:00:06]} Na7 {[%emt 0:00:05]} 26. Rxa5 {[%emt 0:00:03]} Bb7 {[%emt 0:00:09]} 27. Rf1 {[%emt 0:00:11]} Rg8 {[%emt 0:00:06]} 28. Rxf4+ {[%emt 0:00:04]} Ke8 {[%emt 0:00:02]} 29. Nf5 {[%emt 0:00:08]} c5 {[%emt 0:00:05]} 30. g3 {[%emt 0:00:40]} Bc6 {[%emt 0:00:20]} 31. Ne7 {[%emt 0:00:13]} Rb8 {[%emt 0:00:14]} 32. Rxa7 {[%emt 0:00:25]} Rxb2 {[%emt 0:00:03]} 33. Nxc6 {[%emt 0:00:06]} dxc6 {[%emt 0:00:05]} 34. Ra8+ {[%emt 0:00:04]} Kd7 {[%emt 0:00:04]} 35. Rxg8 {[%emt 0:00:05]} Rb1+ {[%emt 0:00:02]} 36. Kg2 {[%emt 0:00:04]} Rb2+ {[%emt 0:00:03]} 37. Kh3 {[%emt 0:00:04]} h5 {[%emt 0:00:04]} 38. Rg7+ {[%emt 0:00:06]} Ke8 {[%emt 0:00:19]} 39. d7+ {[%emt 0:00:06]} Kd8 {[%emt 0:00:03]} 40. Rf8+ {[%emt 0:00:04]} Kc7 {[%emt 0:00:02]} 41. d8=Q# {[%emt 0:00:07]} 1-0

[Event "Deutscher Jugend Online Cup 2020"]
[Site "Tornelo"]
[Date "2020.11.14"]
[Round "7.5"]
[White "Goldmann, David"]
[Black "Besou, Hussain"]
[Result "1-0"]
[ECO "B24"]
[WhiteElo "1644"]
[BlackElo "1804"]
[Annotator "NA RC"]
[PlyCount "139"]
[EventDate "2020.11.13"]
[EventType "k.o."]
[SourceTitle "playchess.com"]
[Source "ChessBase"]
[SourceQuality "1"]
[TimeControl "600+3"]

1. e4 {[%emt 0:00:00]} c5 {[%emt 0:00:06]} 2. Nc3 {[%emt 0:00:03]} Nc6 {[%emt 0:00:03]} 3. g3 {[%emt 0:00:01]} g6 {[%emt 0:00:02]} 4. Bg2 {[%emt 0:00:02]} Bg7 {[%emt 0:00:03]} 5. Nge2 {[%emt 0:00:02]} d6 {[%emt 0:00:02]} 6. O-O {[%emt 0:00:03]} h5 {[%emt 0:00:02]} 7. h4 {[%emt 0:00:04]} e5 {[%emt 0:00:09]} 8. d3 {[%emt 0:00:02]} Be6 {[%emt 0:00:03]} 9. f4 {[%emt 0:00:03]} Qd7 {[%emt 0:00:02]} 10. Nd5 {[%emt 0:00:05]} Nce7 {[%emt 0:00:20]} 11. c4 {[%emt 0:00:05]} Bxd5 {[%emt 0:00:06]} 12. cxd5 {[%emt 0:00:08]} Nh6 {[%emt 0:00:16]} 13. fxe5 {[%emt 0:00:15]} Bxe5 {[%emt 0:00:08]} 14. Nc3 {[%emt 0:00:18]} Bxg3 {[%emt 0:00:04]} 15. Qf3 {[%emt 0:00:05]} Qg4 {[%emt 0:00:28]} 16. Bxh6 {[%emt 0:00:06]} Rxh6 {[%emt 0:00:02]} 17. Qxf7+ {[%emt 0:00:03]} Kd7 {[%emt 0:00:02]} 18. Rf3 {[%emt 0:00:18]} Rhh8 {[%emt 0:00:37]} 19. Qe6+ {[%emt 0:00:04]} Qxe6 {[%emt 0:00:09]} 20. dxe6+ {[%emt 0:00:10]} Kxe6 {[%emt 0:00:04]} 21. Rxg3 {[%emt 0:00:04]} Rag8 {[%emt 0:00:03]} 22. Bh3+ {[%emt 0:00:06]} Kf6 {[%emt 0:00:02]} 23. Rf1+ {[%emt 0:00:03]} Kg7 {[%emt 0:00:02]} 24. Rgf3 {[%emt 0:00:03]} Rf8 {[%emt 0:00:02]} 25. Nb5 {[%emt 0:00:15]} Rxf3 {[%emt 0:00:06]} 26. Rxf3 {[%emt 0:00:03]} Rd8 {[%emt 0:00:03]} 27. Be6 {[%emt 0:00:04]} Kh6 {[%emt 0:00:06]} 28. Rf7 {[%emt 0:00:07]} Nc6 {[%emt 0:00:05]} 29. Rxb7 {[%emt 0:00:04]} Ne5 {[%emt 0:00:02]} 30. Kg2 {[%emt 0:00:26]} Nxd3 {[%emt 0:00:06]} 31. Kg3 {[%emt 0:00:17]} a6 {[%emt 0:00:05]} 32. Nc3 {[%emt 0:00:09]} Ne5 {[%emt 0:00:07]} 33. Rb6 {[%emt 0:00:48]} a5 {[%emt 0:00:08]} 34. Nd5 {[%emt 0:00:36]} Re8 {[%emt 0:00:09]} 35. Rxd6 {[%emt 0:00:34]} Rf8 {[%emt 0:00:07]} 36. Bf5 {[%emt 0:00:08]} Kh7 {[%emt 0:00:05]} 37. Re6 {[%emt 0:00:13]} gxf5 {[%emt 0:00:06]} 38. Rxe5 {[%emt 0:00:03]} fxe4 {[%emt 0:00:01]} 39. Rxe4 {[%emt 0:00:04]} Rg8+ {[%emt 0:00:06]} 40. Kf4 {[%emt 0:00:21]} Rd8 {[%emt 0:00:07]} 41. Re5 {[%emt 0:00:15]} Kg6 {[%emt 0:00:06]} 42. Rg5+ {[%emt 0:00:11]} Kh6 {[%emt 0:00:04]} 43. Ne3 {[%emt 0:00:43]} Rd4+ {[%emt 0:00:04]} 44. Kf3 {[%emt 0:00:06]} Rxh4 {[%emt 0:00:02]} 45. Rxc5 {[%emt 0:00:04]} Rb4 {[%emt 0:00:02]} 46. b3 {[%emt 0:00:03]} a4 {[%emt 0:00:02]} 47. Rc4 {[%emt 0:00:02]} Rb7 {[%emt 0:00:12]} 48. Rxa4 {[%emt 0:00:03]} Rb5 {[%emt 0:00:04]} 49. Rf4 {[%emt 0:00:05]} Kg5 {[%emt 0:00:02]} 50. b4 {[%emt 0:00:09]} h4 {[%emt 0:00:03]} 51. Rc4 {[%emt 0:00:09]} Re5 {[%emt 0:00:07]} 52. Rc5 {[%emt 0:00:02]} Rxc5 {[%emt 0:00:04]} 53. bxc5 {[%emt 0:00:03]} Kf6 {[%emt 0:00:03]} 54. Ke4 {[%emt 0:00:01]} Ke6 {[%emt 0:00:04]} 55. Kd4 {[%emt 0:00:03]} h3 {[%emt 0:00:02]} 56. Ng4 {[%emt 0:00:02]} Kf5 {[%emt 0:00:03]} 57. Nh2 {[%emt 0:00:11]} Ke6 {[%emt 0:00:04]} 58. a4 {[%emt 0:00:04]} Kd7 {[%emt 0:00:03]} 59. Kd5 {[%emt 0:00:03]} Kc7 {[%emt 0:00:05]} 60. c6 {[%emt 0:00:03]} Kb6 {[%emt 0:00:01]} 61. Kd6 {[%emt 0:00:02]} Ka5 {[%emt 0:00:02]} 62. c7 {[%emt 0:00:10]} Kxa4 {[%emt 0:00:04]} 63. c8=Q {[%emt 0:00:02]} Kb4 {[%emt 0:00:03]} 64. Qc5+ {[%emt 0:00:03]} Kb3 {[%emt 0:00:02]} 65. Kd5 {[%emt 0:00:01]} Kb2 {[%emt 0:00:03]} 66. Kd4 {[%emt 0:00:03]} Kb3 {[%emt 0:00:01]} 67. Qc3+ {[%emt 0:00:04]} Ka2 {[%emt 0:00:01]} 68. Qb4 {[%emt 0:00:02]} Ka1 {[%emt 0:00:02]} 69. Kc3 {[%emt 0:00:02]} Ka2 {[%emt 0:00:01]} 70. Qb2# {[%emt 0:00:03]} 1-0